bitfinex-derivatives/quotes_ETHF0:USTF0_20251107
["timestamp","ask_amount","ask_price","bid_price","bid_amount"]
[1762526260440,3.2124886,3199.7,3199.6,0.00348372]
[1762526261221,11.2124886,3199.7,3199.6,0.00348372]
[1762526261426,0.50671,3199.1,3199.0,0.0046886]
[1762526261628,3.2078,3199.1,3199.0,0.0046886]
[1762526262425,3.2078,3199.1,3199.0,0.00858022]
[1762526262617,3.2078,3199.5,3199.0,14.26058022]
[1762526262818,3.2078,3199.5,3199.0,0.00858022]
[1762526263230,0.0046886,3199.7,3199.6,0.50663]
[1762526263529,0.00219894,3200.7,3199.6,8.0]
[1762526263530,3.20999894,3200.7,3199.6,8.0]
[1762526263726,3.20999894,3200.7,3200.5,0.50649]
[1762526264225,0.00219894,3200.7,3200.5,0.50649]
[1762526264429,3.20999894,3200.7,3200.5,0.50649]
[1762526264727,3.71646894,3200.7,3199.9,3.2078]
[1762526265028,3.20999894,3200.7,3200.4,0.50651]
[1762526265228,3.20999894,3200.7,3199.9,3.6774]
[1762526265418,0.00219894,3200.7,3200.5,0.50649]
[1762526265817,0.00219894,3200.7,3199.9,3.6774]
[1762526266023,3.2078,3200.6,3200.2,0.50653]
[1762526266219,3.2078,3200.6,3199.9,3.6774]
[1762526266423,0.00219894,3200.7,3200.6,0.50648]
[1762526266926,0.00219894,3200.7,3199.9,3.6774]
[1762526267131,3.2078,3200.6,3199.9,0.4696]
[1762526267328,0.00219894,3200.7,3200.5,0.50649]
[1762526267730,0.00219894,3200.7,3200.6,8.0]
[1762526267936,0.00219894,3200.7,3200.6,11.2078]
[1762526268231,7.2078,3202.0,3201.7,0.5063]
[1762526268428,0.50634,3201.5,3199.9,0.4696]
[1762526268625,3.2078,3200.3,3199.9,0.4696]
[1762526268830,0.50634,3201.5,3200.2,3.2078]
[1762526269032,0.00342366,3201.5,3200.7,3.2078]
[1762526269233,3.2124886,3201.2,3200.7,3.2078]
[1762526269443,3.2124886,3201.2,3200.9,0.50643]
[1762526269735,0.0046886,3201.2,3201.0,0.50641]
[1762526270331,0.0046886,3201.2,3200.7,3.2078]
[1762526270526,3.71423,3200.9,3200.5,0.0046886]
[1762526270830,3.2078,3200.9,3200.5,0.0046886]
[1762526271022,0.50647,3200.7,3200.5,0.0046886]
[1762526271222,3.2078,3200.6,3199.2,3.2078]
[1762526271438,0.50668,3199.4,3199.2,3.2078]
[1762526271732,0.50667,3199.4,3199.2,3.2078]
[1762526271934,0.5003,3200.0,3196.8,2.20243172]
[1762526271935,3.2078,3198.9,3196.8,2.20243172]
[1762526272233,3.2078,3197.2,3196.8,0.00328986]
[1762526272441,0.0046886,3198.2,3196.8,0.00328986]
[1762526272442,3.2078,3197.6,3196.9,0.50705]
[1762526272739,3.2078,3197.6,3197.4,0.50697]
[1762526273034,3.7147,3198.0,3197.2,3.2078]
[1762526273236,0.50695,3197.7,3197.2,3.2078]
[1762526273429,3.2078,3197.3,3196.8,0.00328986]
[1762526273831,3.2078,3197.9,3196.8,11.21108986]
[1762526274033,3.2078,3197.9,3197.6,0.50695]
[1762526274238,0.50695,3197.7,3196.8,0.00328986]
[1762526274439,3.2078,3197.1,3196.9,0.50706]
[1762526274630,3.2078,3197.1,3196.8,0.00328986]
[1762526275233,3.2078,3197.1,3196.8,0.51035986]
[1762526275636,3.2078,3197.9,3197.7,0.50693]
[1762526275831,3.2078,3197.9,3196.8,0.00328986]
[1762526275832,3.2078,3197.9,3197.4,0.50698]
[1762526276133,3.2078,3197.9,3196.9,6.2552]
[1762526276328,3.2078,3197.9,3196.8,0.00328986]
[1762526276534,0.0046886,3198.2,3197.6,0.50694]
[1762526276736,3.2078,3197.7,3196.8,0.00328986]
[1762526276938,3.2078,3197.2,3197.0,0.50704]
[1762526277542,3.2078,3197.7,3196.8,0.00328986]
[1762526277739,3.2078,3197.7,3197.5,0.50696]
[1762526278036,3.2078,3197.7,3196.8,0.00328986]
[1762526278239,3.2078,3196.9,3196.8,0.00328986]
[1762526278437,3.2078,3197.5,3197.2,0.50701]
[1762526278742,3.2078,3197.5,3196.8,0.00328986]
[1762526278940,3.2078,3196.9,3196.8,0.51036986]
[1762526279238,3.2078,3197.5,3196.8,0.00328986]
[1762526279439,3.2078,3197.3,3196.9,0.50705]
[1762526279741,3.2078,3197.3,3196.8,0.00328986]
[1762526279939,3.2078,3196.9,3196.8,0.00328986]
[1762526280346,0.5003,3195.5,3195.4,0.11754038]
[1762526280535,3.2078,3195.5,3195.1,0.50734]
[1762526280838,3.2078,3196.7,3195.2,3.2078]
[1762526281034,3.2078,3197.9,3196.5,3.2078]
[1762526281335,2.7466617,3199.3,3196.5,3.2078]
[1762526281336,0.00356922,3197.7,3197.6,3.71475]
[1762526281529,2.19949702,3199.9,3197.6,3.2078]
[1762526281530,3.2078,3198.9,3197.6,3.2078]
[1762526281734,0.0046886,3198.5,3198.0,3.2078]
[1762526281934,3.2124886,3198.5,3198.3,0.50684]
[1762526282136,3.2078,3199.3,3198.4,3.2078]
[1762526282331,3.2078,3199.7,3199.5,0.50664]
[1762526282531,0.5515,3199.9,3199.6,0.50663]
[1762526282731,0.5515,3198.8,3197.4,3.2078]
[1762526282940,3.2078,3198.1,3197.4,3.2078]
[1762526283132,0.5515,3198.0,3197.6,0.50696]
[1762526283630,0.5515,3198.0,3197.8,0.50692]
[1762526283830,0.5515,3198.0,3197.8,0.00307299]
[1762526284030,8.0,3197.9,3197.4,0.0046886]
[1762526284230,3.2078,3197.9,3197.4,0.0046886]
[1762526284430,3.7593,3198.0,3197.4,0.0046886]
[1762526284633,3.7593,3198.0,3197.6,0.50694]
[1762526284835,3.7593,3198.0,3197.4,0.0046886]
[1762526285032,3.7593,3198.0,3197.8,0.50691]
[1762526285237,0.0046886,3198.1,3197.8,3.71472]
[1762526285438,3.7593,3198.0,3197.4,0.00719]
[1762526285842,3.7593,3198.0,3197.5,0.50697]
[1762526286038,3.2078,3197.6,3197.4,0.00719]
[1762526286338,0.50944276,3197.6,3197.4,0.00719]
[1762526286532,0.00248276,3197.6,3197.0,0.50704]
[1762526286731,0.00248276,3197.6,3196.0,5.224]
[1762526286732,3.2078,3197.3,3196.8,0.50707]
[1762526286938,3.2078,3196.9,3196.7,0.50708]
[1762526287135,3.2078,3196.9,3196.0,5.224]
[1762526287335,3.2078,3196.9,3196.5,0.50712]
[1762526287641,0.00248276,3197.6,3197.3,0.507]
[1762526287836,0.00248276,3197.6,3196.5,0.00230284]
[1762526288042,0.50718,3196.2,3195.9,3.2078]
[1762526288245,3.2078,3196.0,3195.3,3.2078]
[1762526288449,3.2078,3196.1,3195.8,0.50723]
[1762526288644,0.5515,3196.6,3196.0,0.5072]
[1762526288645,3.2078,3196.5,3196.0,0.5072]
[1762526288942,3.2078,3196.5,3195.8,0.50723]
[1762526289139,3.2078,3196.5,3195.8,0.00393592]
[1762526289336,0.0046886,3196.5,3196.2,0.50717]
[1762526289542,3.7196286,3196.5,3195.9,0.50722]
[1762526289743,0.0046886,3196.5,3196.4,0.50715]
[1762526289943,0.0046886,3196.5,3196.4,3.71495]
[1762526290141,0.0046886,3196.5,3196.4,0.50715]
[1762526290350,0.0046886,3196.5,3196.4,8.50715]
[1762526290650,3.2078,3197.4,3197.3,0.50701]
[1762526290948,3.2078,3197.4,3196.1,3.2078]
[1762526291146,3.21028276,3197.6,3197.3,0.507]
[1762526291345,0.5515,3198.8,3197.5,3.2078]
[1762526291545,1.64799702,3200.5,3196.9,3.532]
[1762526291546,3.2078,3199.8,3199.1,0.50671]
[1762526291751,3.2078,3199.8,3199.0,3.2078]
[1762526292053,0.0046886,3199.8,3199.6,0.50664]
[1762526292243,0.00376061,3199.8,3199.6,0.00402167]
[1762526292444,3.2078,3201.8,3201.1,0.5064]
[1762526292647,0.5515,3202.1,3199.7,8.0]
[1762526292648,7.2078,3202.0,3201.0,0.50641]
[1762526292846,7.2078,3202.0,3199.9,3.2078]
[1762526292847,3.2078,3201.8,3200.4,3.2078]
[1762526293039,3.2078,3201.9,3201.7,0.50631]
[1762526293246,3.2078,3201.9,3201.7,0.5063]
[1762526293440,3.21068519,3201.9,3201.7,0.5063]
[1762526293947,0.00288519,3201.9,3201.5,0.0046886]
[1762526294250,0.00288519,3201.9,3201.7,0.50631]
[1762526294457,0.00288519,3201.9,3201.8,3.2078]
[1762526294753,3.71385,3203.4,3202.6,0.50616]
[1762526294948,3.2078,3203.4,3202.8,3.2078]
[1762526295146,3.2078,3204.1,3203.1,3.2078]
[1762526295349,0.5515,3204.3,3204.0,0.50594]
[1762526295655,0.55504099,3204.3,3204.2,0.50591]
[1762526296052,0.0046886,3204.5,3204.4,0.50588]
[1762526296345,0.5515,3205.2,3204.9,0.5058]
[1762526296545,3.2078,3205.1,3204.0,3.21020596]
[1762526296750,3.2078,3204.5,3204.0,0.00240596]
[1762526296948,3.2078,3204.3,3204.0,0.00240596]
[1762526297252,3.2078,3204.4,3204.0,0.00240596]
[1762526297451,0.00762426,3204.5,3204.0,0.00240596]
[1762526297756,0.00762426,3204.5,3204.3,0.50589]
[1762526298163,4.26e-06,3204.5,3204.3,0.50589]
[1762526298358,4.26e-06,3204.5,3204.4,3.2078]
[1762526298560,0.5515,3205.2,3205.1,0.50577]
[1762526298759,3.7593,3205.2,3204.0,0.00240596]
[1762526298959,3.2078,3204.8,3204.0,0.00240596]
[1762526299154,3.2078,3204.9,3204.0,0.00240596]
[1762526299358,3.2078,3204.1,3204.0,0.00240596]
[1762526299853,8.5515,3204.0,3201.9,3.2078]
[1762526300158,0.5515,3202.8,3202.3,3.2078]
[1762526300356,3.2078,3202.5,3201.9,3.2078]
[1762526300553,0.5515,3202.8,3202.3,3.2078]
[1762526300752,3.2078,3202.6,3202.3,0.00237068]
[1762526300966,0.50618,3202.5,3202.3,0.00237068]
[1762526301160,0.55550378,3202.8,3202.3,0.00237068]
[1762526301366,3.76330378,3202.8,3202.4,0.5062]
[1762526301563,3.76330378,3202.8,3202.3,0.00237068]
[1762526301759,3.2078,3202.4,3202.3,0.00237068]
[1762526302160,11.2078,3202.4,3201.3,0.50636]
[1762526302460,11.2078,3202.4,3201.2,3.2078]
[1762526302461,0.5515,3201.6,3201.2,3.2078]
[1762526302659,0.5515,3201.6,3201.4,0.50635]
[1762526302859,3.2078,3202.5,3202.2,0.50622]
[1762526303162,3.2078,3202.6,3202.2,0.51008346]
[1762526303564,3.2078,3202.6,3202.4,0.50619]
[1762526303862,3.2078,3202.6,3202.2,0.00386346]
[1762526303863,0.00468114,3202.7,3202.6,0.50617]
[1762526304258,0.55550378,3202.8,3202.6,0.50615]
[1762526304653,0.55550378,3202.8,3202.6,0.50616]
[1762526304864,3.2078,3203.4,3202.7,3.2078]
[1762526305165,0.5515,3204.0,3203.9,0.50596]
[1762526305666,0.5515,3204.0,3203.9,6.74836]
[1762526305969,0.00468114,3204.3,3203.9,6.74836]
[1762526305970,0.00468114,3204.3,3204.2,0.50592]
[1762526306164,0.5515,3205.2,3205.0,0.50579]
[1762526306465,3.2078,3205.9,3205.5,0.5057]
[1762526306761,3.21086631,3205.9,3205.4,3.2078]
[1762526306963,0.00306631,3205.9,3205.7,0.50566]
[1762526307167,0.00306631,3205.9,3205.5,0.00468114]
[1762526307367,0.00306631,3205.9,3205.7,0.50567]
[1762526307571,0.00306631,3205.9,3205.5,0.00468114]
[1762526307766,0.00306631,3205.9,3205.7,0.50567]
[1762526308062,0.00294885,3206.1,3205.7,0.50567]
[1762526308264,0.00294885,3206.1,3206.0,3.71343]
[1762526308468,0.00294885,3206.1,3206.0,0.50563]
[1762526308771,0.00294885,3206.1,3205.5,0.00468114]
[1762526308968,0.00294885,3206.1,3205.8,0.50566]
[1762526309164,0.00593582,3206.1,3205.5,0.00468114]
[1762526309364,3.2078,3205.6,3205.5,0.00468114]
[1762526309765,3.2078,3205.6,3205.0,0.00373298]
[1762526309766,0.5921,3205.2,3205.0,0.00373298]
[1762526309965,3.2078,3205.1,3204.3,3.2078]
[1762526310471,3.71368,3204.5,3203.6,0.50601]
[1762526310766,3.2078,3203.9,3201.7,3.2078]
[1762526310967,3.2078,3202.2,3202.0,0.50626]
[1762526311175,0.00315757,3202.2,3202.1,3.2078]
[1762526311677,0.5921,3202.8,3202.7,0.50616]
[1762526311971,0.00468114,3203.1,3203.0,0.50611]
[1762526312562,0.00694302,3203.1,3203.0,0.50611]
[1762526312762,0.5921,3204.0,3203.9,0.50597]
[1762526312963,3.2078,3205.5,3203.9,9.4502]
[1762526313175,3.2078,3204.6,3203.8,3.2078]
[1762526313368,3.2078,3204.2,3203.3,0.50603]
[1762526313670,3.2078,3204.2,3203.4,0.00468114]
[1762526313671,0.00468114,3204.1,3203.4,0.00468114]
[1762526314179,3.2078,3205.5,3205.1,0.50576]
[1762526314471,3.2078,3205.5,3204.0,3.2078]
[1762526314472,3.2078,3205.5,3204.3,0.50588]
[1762526314667,3.2078,3206.0,3205.1,3.2078]
[1762526314876,3.2078,3206.0,3205.8,0.50565]
[1762526315063,3.7593,3206.4,3206.3,0.50557]
[1762526315262,3.76218094,3206.4,3206.3,0.50831161]
[1762526315461,3.76218094,3206.4,3206.3,0.00274161]
[1762526316066,0.50566,3205.8,3205.0,0.50577]
[1762526316261,0.5921,3205.2,3204.6,3.2078]
[1762526316467,3.76218094,3206.4,3205.1,3.2078]
[1762526316671,0.55438094,3206.4,3205.5,3.2078]
[1762526316870,0.55438094,3206.4,3205.9,3.2078]
[1762526317065,3.2078,3206.2,3205.9,0.00394227]
[1762526317270,0.55438094,3206.4,3206.3,0.50558]
[1762526317472,0.5921,3207.1,3207.0,0.50547]
[1762526317774,0.5921,3207.1,3206.5,3.2078]
[1762526317775,3.7999,3207.1,3206.5,3.2078]
[1762526317974,0.5921,3207.1,3206.4,3.2078]
[1762526318175,0.5921,3206.4,3205.9,0.00394227]
[1762526318472,0.59608371,3206.4,3205.9,0.00394227]
[1762526318973,0.59608371,3206.4,3206.2,3.71339]
[1762526319664,0.59608371,3206.4,3206.2,3.2078]
[1762526319859,0.59608371,3206.4,3206.2,0.5056]
[1762526320064,0.59608371,3206.4,3206.3,9.4454]
[1762526320271,0.5921,3207.1,3207.0,0.50547]
[1762526320668,0.5921,3207.1,3206.6,3.2078]
[1762526320970,0.5921,3208.4,3206.6,3.2078]
[1762526320971,3.7999,3208.4,3207.0,3.2078]
[1762526321267,0.6245,3207.6,3207.0,3.2078]
[1762526321866,0.6245,3207.6,3207.5,3.2078]
[1762526322062,0.6245,3207.6,3207.4,0.5054]
[1762526322262,3.80371635,3208.4,3208.2,0.50528]
[1762526322466,3.80371635,3208.4,3208.2,0.50787984]
[1762526322671,0.59591635,3208.4,3208.2,0.00259984]
[1762526322968,0.5921,3210.0,3209.9,0.50502]
[1762526323169,0.5921,3210.0,3209.4,3.2078]
[1762526323365,0.5921,3210.0,3209.6,0.00467297]
[1762526323762,3.80327378,3210.0,3208.9,3.2078]
[1762526324067,3.2078,3209.7,3208.9,3.2078]
[1762526324368,0.59547378,3210.0,3209.9,0.50502]
[1762526324570,3.80327378,3210.0,3209.4,3.2078]
[1762526324874,3.80327378,3210.0,3208.9,3.2078]
[1762526324875,3.2078,3209.8,3208.9,3.2078]
[1762526325063,3.2078,3209.5,3208.4,3.2078]
[1762526325266,0.6245,3208.4,3208.2,0.00259984]
[1762526325580,0.6245,3208.4,3207.2,3.2078]
[1762526325581,3.8323,3208.4,3207.2,3.2078]
[1762526325875,0.6245,3208.4,3207.2,3.2078]
[1762526326073,3.2078,3208.0,3207.5,0.00467297]
[1762526326371,0.00467297,3208.1,3207.5,0.51006297]
[1762526326673,0.00467297,3208.1,3207.5,0.5123]
[1762526326873,0.00467297,3208.1,3207.5,0.00691]
[1762526327178,0.00467297,3208.1,3206.8,3.2078]
[1762526327179,0.6245,3207.1,3206.8,3.2078]
[1762526327373,0.00467297,3208.1,3208.0,0.50532]
[1762526327670,0.6245,3208.4,3208.3,0.50527]
[1762526328069,0.6245,3208.4,3208.3,0.002993]
[1762526328070,8.62743992,3208.4,3208.3,0.002993]
[1762526328270,8.62743992,3208.4,3208.0,3.2078]
[1762526328481,0.62743992,3208.4,3208.2,0.50528]
[1762526328875,0.62743992,3208.4,3208.0,3.71779297]
[1762526329071,0.62743992,3208.4,3208.0,3.21247297]
[1762526329277,0.62743992,3208.4,3207.4,3.2078]
[1762526329278,3.2078,3208.1,3207.4,3.2078]
[1762526329475,0.6245,3207.1,3206.9,0.50549]
[1762526329673,0.6245,3207.1,3206.8,3.2078]
[1762526329874,0.6245,3207.1,3206.5,3.2078]
[1762526330171,3.2078,3207.0,3206.1,3.2078]
[1762526330369,3.2078,3206.7,3206.1,3.21083483]
[1762526330679,0.00467297,3206.9,3206.2,0.00467297]
[1762526330973,0.00467297,3206.9,3206.7,3.2078]
[1762526331179,0.00467297,3206.9,3206.7,3.71332]
[1762526331575,0.50555,3206.6,3206.2,0.00467297]
[1762526331880,0.6245,3206.4,3205.2,0.50576]
[1762526332074,3.2078,3206.2,3205.4,3.2078]
[1762526332279,0.6245,3206.4,3205.9,3.2078]
[1762526332481,3.8323,3207.6,3206.3,3.2078]
[1762526332676,0.50552,3206.8,3206.0,0.50563]
[1762526332882,0.00467297,3206.7,3206.3,0.50558]
[1762526333181,0.00467297,3206.7,3206.5,0.50555]
[1762526333381,3.2078,3206.6,3206.1,0.00467297]
[1762526333675,0.6245,3206.4,3206.0,0.00310401]
[1762526333883,0.6245,3206.4,3206.1,0.50561]
[1762526334083,0.6245,3206.4,3206.0,0.50872401]
[1762526334279,3.8323,3206.4,3206.0,0.00310401]
[1762526334470,0.6245,3206.4,3206.0,0.00310401]
[1762526334671,0.6245,3206.4,3206.1,0.50562]
[1762526334874,0.50559,3206.3,3206.0,0.00310401]
[1762526335077,0.00467297,3206.7,3206.4,0.50557]
[1762526335277,0.00467297,3206.7,3206.0,0.00310401]
[1762526335278,0.00467297,3206.7,3206.5,0.50555]
[1762526335779,0.6245,3206.4,3206.0,0.00310401]
[1762526336285,0.00467297,3206.7,3206.6,0.50554]
[1762526336995,0.6245,3207.6,3206.5,3.2078]
[1762526336996,0.6245,3207.6,3207.5,0.5054]
[1762526337177,3.2078,3207.8,3206.0,0.00310401]
[1762526337178,3.2078,3207.8,3207.7,0.50537]
[1762526337380,3.2078,3207.8,3207.0,3.2078]
[1762526337678,0.62743992,3208.4,3206.5,3.2078]
[1762526337679,3.2078,3207.4,3206.5,3.2078]
[1762526337979,0.50543,3207.3,3206.5,3.2078]
[1762526338181,0.50547,3207.1,3206.6,0.50554]
[1762526338385,3.2078,3207.0,3206.5,3.2078]
[1762526338683,3.2078,3207.0,3206.7,0.50552]
[1762526338885,3.2078,3207.0,3206.5,0.50556]
[1762526339189,3.2078,3207.0,3206.0,3.21090401]
[1762526339190,0.6737,3206.4,3206.0,3.21090401]
[1762526339489,0.6737,3206.4,3206.2,0.5056]
[1762526339987,3.71326,3207.2,3206.6,0.50554]
[1762526340191,0.6737,3206.4,3206.0,0.00310401]
[1762526340683,0.6737,3206.4,3206.3,0.50559]
[1762526340985,0.00467297,3207.3,3207.2,0.50545]
[1762526341192,0.00467297,3207.3,3206.6,3.2078]
[1762526341393,3.2078,3206.9,3206.0,0.00310401]
[1762526341688,0.50554,3206.7,3206.0,0.00310401]
[1762526341882,0.00467297,3207.3,3207.0,0.50547]
[1762526342088,3.2078,3207.1,3206.0,0.00310401]
[1762526342383,0.6737,3206.5,3206.0,0.00310401]
[1762526342578,0.50559,3206.3,3206.0,0.00310401]
[1762526342779,3.2078,3206.4,3206.0,0.00310401]
[1762526342975,8.0,3206.3,3205.9,0.00467297]
[1762526343177,0.6737,3205.4,3204.8,3.71362]
[1762526343386,0.6737,3204.3,3202.9,3.2078]
[1762526343574,3.71382,3203.6,3202.0,14.4388]
[1762526343779,0.6737,3204.3,3202.7,0.50615]
[1762526343780,3.2078,3203.0,3202.7,0.50615]
[1762526343984,3.2078,3203.0,3202.7,0.00400238]
[1762526344183,0.50613,3202.9,3202.7,0.00400238]
[1762526344485,3.21142302,3203.0,3201.1,6.214]
[1762526344486,11.21142302,3203.0,3201.6,3.2078]
[1762526344686,11.21142302,3203.0,3200.2,11.231]
[1762526344687,3.2078,3201.8,3201.0,3.2078]
[1762526344986,3.2078,3201.4,3200.9,0.50643]
[1762526345292,3.2078,3201.4,3201.2,0.50638]
[1762526345485,3.2078,3201.4,3201.2,0.00298166]
[1762526345977,0.00468041,3201.6,3201.2,0.00298166]
[1762526346287,0.00468041,3201.6,3201.4,0.50635]
[1762526346689,0.00468041,3201.6,3201.4,0.50636]
[1762526346884,3.2078,3201.5,3201.2,0.00298166]
[1762526347091,0.00468041,3201.6,3201.2,0.00298166]
[1762526347286,0.00468041,3201.6,3201.5,0.50635]
[1762526347786,3.2078,3202.4,3201.5,0.50635]
[1762526347787,3.2078,3202.4,3201.5,14.2472]
[1762526347988,3.2078,3202.8,3201.7,3.2078]
[1762526348286,3.2078,3202.8,3202.6,0.50617]
[1762526348491,0.00362302,3203.0,3202.9,0.50613]
[1762526348787,0.00362302,3203.0,3202.7,0.50615]
[1762526348987,3.2078,3202.9,3202.7,0.50615]
[1762526349381,3.8815,3202.8,3201.2,0.00298166]
[1762526349580,3.2078,3201.4,3201.2,0.00298166]
[1762526349786,3.71417,3201.4,3201.2,0.00298166]
[1762526349989,0.50648,3200.8,3199.7,3.2078]
[1762526350189,3.2078,3200.1,3199.8,0.50661]
[1762526350386,3.2078,3200.1,3199.2,3.2078]
[1762526350690,3.2078,3199.9,3199.6,0.00315988]
[1762526350882,3.2078,3200.1,3199.6,0.00315988]
[1762526351083,0.00238629,3199.9,3199.7,0.50664]
[1762526351693,0.00238629,3199.9,3199.7,0.50663]
[1762526352186,0.00238629,3199.9,3199.8,6.2504]
[1762526352493,3.2078,3201.1,3201.0,0.50643]
[1762526352682,3.2078,3201.1,3200.1,3.2078]
[1762526352878,3.2078,3200.7,3200.1,3.2078]
[1762526353083,3.2078,3201.1,3199.7,3.2078]
[1762526353279,3.2078,3200.0,3199.6,0.00685142]
[1762526353482,3.21101219,3200.0,3199.6,0.00685142]
[1762526354384,0.50664,3199.8,3199.6,0.00685142]
[1762526354583,0.6737,3199.2,3198.1,3.2078]
[1762526354780,3.2078,3198.5,3197.3,11.242]
[1762526354988,0.6737,3199.2,3196.9,3.2078]
[1762526354989,3.2078,3197.7,3196.9,3.2078]
[1762526355286,3.2078,3197.8,3196.9,3.2078]
[1762526355491,3.2078,3198.2,3197.4,0.507]
[1762526355686,0.00468808,3198.1,3197.5,0.00468808]
[1762526355893,0.00468808,3198.1,3197.9,0.50691]
[1762526356289,0.00299149,3198.2,3198.1,0.50689]
[1762526356690,0.00299149,3198.2,3198.1,14.76049]
[1762526356894,0.00299149,3198.2,3198.1,8.50689]
[1762526357090,0.00299149,3198.2,3198.1,14.76049]
[1762526357293,0.00299149,3198.2,3198.1,6.76049]
[1762526357495,0.00299149,3198.2,3197.5,0.00468808]
[1762526357697,0.00299149,3198.2,3198.0,0.5069]
[1762526357895,3.2078,3199.1,3199.0,0.50674]
[1762526358090,3.2078,3199.1,3197.9,3.2078]
[1762526358400,3.2078,3198.8,3198.6,0.50681]
[1762526358889,3.21184295,3198.8,3198.4,0.00468808]
[1762526359286,0.50682,3198.6,3198.4,0.00468808]
[1762526359493,3.21184295,3198.8,3197.4,0.0036466]
[1762526359693,3.2078,3197.8,3197.6,0.50697]
[1762526359996,3.2078,3197.8,3197.4,0.0036466]
[1762526360792,3.2078,3198.2,3198.1,0.5069]
[1762526360993,3.2078,3198.7,3197.6,3.2078]
[1762526361294,3.2078,3198.7,3198.5,0.50683]
[1762526361597,0.00404295,3198.8,3198.7,0.5068]
[1762526362294,3.21184295,3198.8,3197.4,0.0036466]
[1762526362496,3.2078,3198.0,3197.8,0.50694]
[1762526363401,3.2078,3198.0,3197.4,0.0036466]
[1762526363595,3.2078,3197.6,3197.4,0.0036466]
[1762526363801,3.2078,3197.6,3196.4,3.2078]
[1762526364103,3.2078,3196.5,3194.8,14.4608]
[1762526364396,3.2078,3195.0,3193.6,3.2078]
[1762526364596,3.2078,3194.0,3193.2,3.2078]
[1762526364799,3.2078,3193.8,3192.9,3.2086]
[1762526365098,0.6737,3195.6,3194.6,0.50744]
[1762526365099,3.2078,3195.2,3194.6,0.50744]
[1762526365295,3.2078,3195.7,3194.5,3.2078]
[1762526365491,0.6737,3198.0,3194.1,3.2078]
[1762526365492,3.2078,3195.8,3194.1,3.2078]
[1762526365698,3.2078,3195.1,3195.0,0.50739]
[1762526365894,3.2078,3195.3,3195.1,0.50737]
[1762526366100,0.00286629,3195.3,3195.0,3.2078]
[1762526366312,0.00286629,3195.3,3195.1,0.50736]
[1762526366593,0.6737,3198.0,3195.1,0.50736]
[1762526366594,3.2078,3196.6,3195.1,55.0592]
[1762526366798,0.6737,3198.0,3195.9,3.2078]
[1762526366991,3.2078,3197.4,3197.2,0.50702]
[1762526367193,3.2078,3197.4,3196.4,3.2078]
[1762526367194,3.2078,3198.2,3198.1,0.50689]
[1762526367499,3.21091044,3198.2,3198.1,0.00339265]
[1762526367800,0.00311044,3198.2,3198.1,0.51028265]
[1762526368100,0.00311044,3198.2,3198.1,0.00339265]
[1762526368289,3.2078,3199.3,3198.2,8.0]
[1762526368491,3.2078,3198.9,3198.1,0.00339265]
[1762526368693,3.2078,3199.3,3198.4,3.2078]
[1762526368894,3.2078,3198.8,3198.1,0.00339265]
[1762526369094,3.2078,3198.4,3198.1,0.51027265]
[1762526369291,3.21166683,3198.4,3198.2,0.50686]
[1762526369493,0.00386683,3198.4,3198.1,0.00339265]
[1762526369689,3.2078,3198.2,3198.1,0.00339265]
[1762526369896,3.2078,3198.2,3197.8,0.00469585]
[1762526370196,3.2078,3198.2,3197.3,0.50702]
[1762526370399,3.2078,3197.4,3197.1,0.50704]
[1762526370597,3.2078,3197.4,3196.0,3.2078]
[1762526370900,0.00386683,3198.4,3198.1,0.50688]
[1762526371100,0.00386683,3198.4,3197.7,0.50695]
[1762526371401,0.00386683,3198.4,3198.0,0.5069]
[1762526371598,3.2078,3198.1,3197.3,0.50702]
[1762526371801,3.7147,3198.1,3197.2,3.2078]
[1762526372097,0.50713,3196.7,3196.5,4.10787899]
[1762526372298,0.00468845,3196.9,3196.5,4.10787899]
[1762526372601,0.00468845,3196.9,3196.4,3.21248845]
[1762526372602,0.00468845,3196.9,3196.7,0.50711]
[1762526372799,0.00468845,3196.9,3196.4,3.71963845]
[1762526372990,0.00468845,3196.9,3196.4,3.21248845]
[1762526373390,0.00468845,3196.9,3196.8,3.2078]
[1762526373902,3.2078,3198.1,3197.5,0.50698]
[1762526374093,3.7147,3198.1,3197.4,0.50699]
[1762526374399,0.00386683,3198.4,3196.4,0.00468845]
[1762526374400,3.2078,3197.7,3196.8,3.2078]
[1762526374796,0.00386683,3198.4,3196.8,3.2078]
[1762526374797,3.2078,3198.1,3196.8,3.2078]
[1762526374989,0.00468845,3197.6,3197.5,0.50699]
[1762526375196,0.00468845,3197.6,3197.0,3.2078]
[1762526375594,0.51166845,3197.6,3197.0,3.2078]
[1762526375802,3.2078,3197.3,3196.6,3.2078]
[1762526376094,3.2078,3197.3,3196.8,0.50709]
[1762526376295,0.00386683,3198.4,3198.3,0.50686]
[1762526376500,0.00386683,3198.4,3198.3,0.51076567]
[1762526376897,0.00386683,3198.4,3198.3,0.00390567]
[1762526377098,8.00386683,3198.4,3198.3,0.00390567]
[1762526377494,0.00386683,3198.4,3198.3,0.00390567]
[1762526377695,0.00386683,3198.4,3197.1,3.2078]
[1762526377891,3.2078,3198.3,3197.1,3.2078]
[1762526378099,0.00386683,3198.4,3197.6,3.2078]
[1762526378295,0.00386683,3198.4,3198.2,0.50687]
[1762526378496,1.09866468,3200.7,3198.7,0.50679]
[1762526378699,3.2078,3198.9,3198.0,3.2078]
[1762526379001,3.2078,3198.5,3198.1,0.50689]
[1762526379198,3.2078,3198.5,3198.2,0.50687]
[1762526379399,0.00259466,3198.5,3198.4,3.71464]
[1762526379598,0.00468845,3198.7,3198.6,0.50681]
[1762526379801,0.00468845,3198.7,3198.2,0.00257878]
[1762526380005,0.00468845,3198.7,3198.5,0.50682]
[1762526380701,0.0071578,3198.7,3198.5,6.75962]
[1762526381000,3.2078,3199.6,3198.4,3.2078]
[1762526381204,0.50667,3199.5,3198.4,3.2078]
[1762526381407,3.2078,3199.6,3199.1,0.50672]
[1762526381600,3.2078,3199.6,3199.4,0.50668]